fUSD/lending_fUSD_20240706
["ID","MTS","AMOUNT","RATE_DAILY","PERIOD"]
[331375505,1720300249458,-2298.44713813,0.00014,2]
[331377110,1720300523008,182.95576881,0.00011199,2]
[331377114,1720300576699,235.56084033,0.00011199,2]
[331377115,1720300627201,256.17502511,0.00011199,2]
[331377120,1720300658612,227.19964772,0.00011199,2]
[331377139,1720300743383,774.57,0.00010558,2]
[331377161,1720300954207,524.5064752,0.00011199,2]
[331377176,1720301065292,729.37018578,0.00011199,2]
[331377198,1720301322078,227.19964772,0.00011199,2]
[331377209,1720301433242,-6047.99301454,0.00012423,2]
[331377210,1720301433254,-3411.11018416,0.00012423,2]
[331377211,1720301433266,-10290.8168013,0.00012423,2]
[331377212,1720301433278,-500.0,0.00012436,2]
[331377213,1720301433288,-250.0,0.00012439,2]
[331377214,1720301433299,-1000.0,0.00012439,2]
[331377215,1720301433311,-168.86,0.00012441,2]
[331377216,1720301433321,-250.0,0.00012453,2]
[331377217,1720301433333,-1007.88,0.00012472,2]
[331377218,1720301433343,-176.55,0.00012501,2]
[331377219,1720301433355,-186.67,0.00012506,2]
[331377220,1720301433365,-764.9,0.00012536,2]
[331377221,1720301433380,-156.54,0.0001256,2]
[331377222,1720301433398,-150.0,0.000126,2]
[331377223,1720301433409,-559.0,0.0001268,2]
[331377224,1720301433426,-559.0,0.00012683,2]
[331377225,1720301433441,-690.46,0.00012683,2]
[331377226,1720301433451,-559.0,0.00012686,2]
[331377227,1720301433463,-499.99,0.0001269,2]
[331377228,1720301433473,-559.0,0.0001269,2]
[331377229,1720301433484,-559.0,0.00012693,2]
[331377230,1720301433496,-2128.38,0.00012693,2]
[331377231,1720301433508,-559.0,0.00012696,2]
[331377232,1720301433520,-3104.9,0.00012696,2]
[331377233,1720301433530,-351.96,0.00012696,2]
[331377234,1720301433544,-559.0,0.000127,2]
[331377235,1720301433555,-559.0,0.00012703,2]
[331377236,1720301433565,-559.0,0.00012706,2]
[331377237,1720301433576,-559.0,0.0001271,2]
[331377238,1720301433587,-559.0,0.00012713,2]
[331377239,1720301433600,-559.0,0.00012717,2]
[331377240,1720301433612,-559.0,0.0001272,2]
[331377241,1720301433623,-559.0,0.00012723,2]
[331377242,1720301433633,-559.0,0.00012727,2]
[331377243,1720301433643,-559.0,0.0001273,2]
[331377244,1720301433653,-559.0,0.00012733,2]
[331377245,1720301433664,-559.0,0.00012737,2]
[331377246,1720301433675,-559.0,0.0001274,2]
[331377247,1720301433686,-559.0,0.00012743,2]
[331377248,1720301433700,-325.33,0.00012746,2]
[331377249,1720301433719,-774.57,0.00012821,2]
[331377250,1720301433738,-300.0,0.00013,4]
[331377251,1720301433762,-300.0,0.00013,4]
[331377252,1720301433774,-854.45,0.00013041,2]
[331377253,1720301433794,-419.2,0.00013041,2]
[331377255,1720301433804,-854.45,0.00013041,2]
[331377258,1720301433815,-1280.47,0.00013041,2]
[331377259,1720301433842,-600.0,0.000131,4]
[331377260,1720301433859,-600.0,0.000131,4]
[331377261,1720301433874,-1748.42762844,0.00013128,2]
[331377262,1720301433894,-1975.45499067,0.00013128,2]
[331377263,1720301433905,-1000.0,0.000132,4]
[331377264,1720301433922,-900.0,0.000132,4]
[331377265,1720301433947,-1200.0,0.000133,4]
[331377266,1720301433972,-1646.0,0.00013314,2]
[331377267,1720301433984,-1500.0,0.000134,4]
[331377268,1720301433997,-150.0,0.00013493,2]
[331377269,1720301434011,-150.0,0.00013493,2]
[331377270,1720301434024,-437.16,0.00013493,2]
[331377271,1720301434037,-424.49,0.00013493,2]
[331377272,1720301434047,-241.95,0.00013493,2]
[331377273,1720301434058,-300.0,0.000135,4]
[331377274,1720301434077,-304.56363354,0.00013516,2]
[331377275,1720301434095,-263.58284568,0.00013543,2]
[331377276,1720301434114,-227.19964772,0.00013574,2]
[331377277,1720301434132,-8249.87,0.00013699,2]
[331377278,1720301434142,-250.0,0.00013699,2]
[331377279,1720301434159,-710.44,0.00013699,2]
[331377280,1720301434181,-1000.0,0.000137,2]
[331377281,1720301434193,-1033.95501808,0.0001372,2]
[331377282,1720301434204,-1116.86447433,0.0001372,2]
[331377283,1720301434215,-1141.62244295,0.0001372,2]
[331377284,1720301434225,-1500.0,0.00013724,2]
[331377285,1720301434237,-150.0,0.00013726,2]
[331377286,1720301434247,-150.0,0.0001373,2]
[331377287,1720301434258,-150.0,0.00013733,2]
[331377288,1720301434273,-150.0,0.00013734,2]
[331377289,1720301434298,-300.0,0.00013736,2]
[331377290,1720301434311,-1500.0,0.00013737,2]
[331377291,1720301434324,-150.0,0.00013742,2]
[331377292,1720301434349,-150.0,0.00013742,2]
[331377293,1720301434359,-150.0,0.00013743,2]
[331377294,1720301434369,-150.0,0.00013743,2]
[331377295,1720301434394,-1536.85978934,0.00013744,2]
[331377296,1720301434405,-150.0,0.00013745,2]
[331377297,1720301434418,-150.0,0.00013745,2]
[331377298,1720301434431,-150.0,0.00013745,2]
[331377299,1720301434453,-150.0,0.00013746,2]
[331377300,1720301434471,-150.0,0.00013747,2]
[331377301,1720301434482,-150.0,0.00013748,2]
[331377302,1720301434498,-150.0,0.00013748,2]
[331377303,1720301434510,-150.0,0.00013749,2]
[331377304,1720301434522,-150.0,0.0001375,2]
[331377305,1720301434533,-150.0,0.00013752,2]
[331377306,1720301434546,-150.0,0.00013753,2]
[331377307,1720301434560,-1500.0,0.00013753,2]
[331377308,1720301434572,-150.0,0.00013755,2]
[331377309,1720301434583,-150.0,0.00013756,2]
[331377310,1720301434595,-150.0,0.00013757,2]
[331377311,1720301434607,-150.0,0.00013758,2]
[331377312,1720301434620,-150.0,0.00013758,2]
[331377313,1720301434633,-150.0,0.00013761,2]
[331377314,1720301434645,-150.0,0.00013762,2]
[331377315,1720301434674,-150.0,0.00013763,2]
[331377316,1720301434685,-150.0,0.00013763,2]
[331377317,1720301434699,-173.31,0.00013764,2]
[331377318,1720301434716,-150.0,0.00013765,2]
[331377319,1720301434730,-150.0,0.00013765,2]
[331377320,1720301434742,-1500.0,0.00013768,2]
[331377321,1720301434761,-150.0,0.00013769,2]
[331377322,1720301434774,-150.0,0.0001377,2]
[331377323,1720301434787,-150.0,0.00013772,2]
[331377324,1720301434803,-150.0,0.00013772,2]
[331377325,1720301434815,-300.0,0.00013773,2]
[331377326,1720301434827,-150.0,0.00013777,2]
[331377327,1720301434848,-150.0,0.00013778,2]
[331377328,1720301434871,-150.0,0.00013778,2]
[331377329,1720301434882,-150.0,0.0001378,2]
[331377330,1720301434901,-1716.7885,0.00013782,2]
[331377331,1720301434917,-180.22762838,0.00013783,2]
[331377332,1720301434930,-150.0,0.00013784,2]
[331377333,1720301434942,-150.0,0.00013795,2]
[331377334,1720301434953,-150.0,0.00013797,2]
[331377335,1720301434974,-150.0,0.00013798,2]
[331377336,1720301434993,-150.0,0.00013801,2]
[331377337,1720301435008,-150.0,0.00013802,2]
[331377338,1720301435025,-153.76,0.00013807,3]
[331377339,1720301435041,-150.0,0.00013809,2]
[331377340,1720301435053,-150.0,0.00013809,2]
[331377341,1720301435069,-150.0,0.00013809,2]
[331377342,1720301435095,-150.0,0.0001381,2]
[331377343,1720301435108,-150.0,0.00013811,2]
[331377344,1720301435119,-150.0,0.00013812,2]
[331377345,1720301435139,-150.0,0.00013816,2]
[331377346,1720301435153,-150.0,0.00013817,2]
[331377347,1720301435165,-150.0,0.00013817,2]
[331377348,1720301435189,-150.0,0.00013817,2]
[331377349,1720301435199,-150.0,0.00013818,2]
[331377350,1720301435212,-150.0,0.00013819,2]
[331377351,1720301435227,-300.0,0.0001382,2]
[331377352,1720301435238,-150.0,0.00013821,2]
[331377353,1720301435251,-150.0,0.00013821,2]
[331377354,1720301435264,-150.0,0.00013822,2]
[331377355,1720301435284,-150.0,0.00013828,2]
[331377356,1720301435295,-150.0,0.00013831,2]
[331377357,1720301435307,-150.0,0.00013831,2]
[331377358,1720301435319,-150.0,0.00013831,2]
[331377359,1720301435330,-1500.0,0.00013831,2]
[331377360,1720301435342,-300.0,0.00013834,2]
[331377361,1720301435354,-150.0,0.00013839,2]
[331377362,1720301435376,-150.0,0.00013842,2]
[331377363,1720301435388,-150.0,0.00013843,2]
[331377364,1720301435405,-150.0,0.00013843,2]
[331377365,1720301435415,-150.0,0.00013845,2]
[331377366,1720301435426,-150.0,0.00013846,2]
[331377367,1720301435441,-150.0,0.00013847,2]
[331377368,1720301435452,-150.0,0.0001385,2]
[331377369,1720301435479,-1500.0,0.0001385,2]
[331377370,1720301435500,-150.0,0.00013851,2]
[331377371,1720301435512,-150.0,0.00013852,2]
[331377372,1720301435524,-150.0,0.00013854,2]
[331377373,1720301435535,-150.0,0.00013854,2]
[331377374,1720301435546,-150.0,0.00013854,2]
[331377375,1720301435560,-150.0,0.00013855,2]
[331377376,1720301435572,-150.0,0.00013858,2]
[331377377,1720301435583,-150.0,0.00013859,2]
[331377378,1720301435594,-3000.0,0.0001386,2]
[331377379,1720301435605,-3000.0,0.0001386,2]
[331377380,1720301435625,-150.0,0.00013866,2]
[331377381,1720301435648,-150.0,0.00013866,2]
[331377382,1720301435659,-150.0,0.00013869,2]
[331377383,1720301435677,-150.0,0.0001387,2]
[331377384,1720301435688,-150.0,0.00013871,2]
[331377385,1720301435716,-150.0,0.00013874,2]
[331377386,1720301435729,-150.0,0.00013874,2]
[331377387,1720301435748,-150.0,0.00013875,2]
[331377388,1720301435760,-150.0,0.00013875,2]
[331377389,1720301435775,-150.0,0.00013876,2]
[331377390,1720301435789,-150.0,0.00013876,2]
[331377391,1720301435799,-1500.0,0.00013879,2]
[331377392,1720301435811,-1500.0,0.00013881,2]
[331377393,1720301435824,-150.0,0.00013882,2]
[331377394,1720301435842,-150.0,0.00013882,2]
[331377395,1720301435854,-300.0,0.00013883,2]
[331377396,1720301435870,-150.0,0.00013885,2]
[331377397,1720301435882,-150.0,0.00013886,2]
[331377398,1720301435897,-150.0,0.00013886,2]
[331377399,1720301435908,-200.0,0.00013887,2]
[331377400,1720301435919,-150.0,0.00013887,2]
[331377401,1720301435930,-500.0,0.00013888,2]
[331377402,1720301435941,-200.0,0.00013888,2]
[331377403,1720301435963,-150.0,0.00013888,2]
[331377404,1720301435977,-1500.0,0.00013893,2]
[331377405,1720301435989,-1500.0,0.00013893,2]
[331377406,1720301436000,-150.0,0.00013897,2]
[331377407,1720301436011,-226.63928658,0.00013897,2]
[331377408,1720301436024,-150.0,0.00013899,2]
[331377409,1720301436037,-169.7347945,0.000139,2]
[331377410,1720301436050,-602.7287,0.000139,2]
[331377411,1720301436063,-1000.0,0.000139,2]
[331377412,1720301436079,-3404.5372,0.000139,2]
[331377413,1720301436091,-5126.0387,0.000139,2]
[331377414,1720301436102,-315.6806,0.000139,2]
[331377415,1720301436114,-177.5368,0.000139,2]
[331377416,1720301436126,-174.3285366,0.000139,2]
[331377417,1720301436139,-615.5753,0.000139,2]
[331377418,1720301436153,-641.0,0.000139,2]
[331377419,1720301436169,-23073.4131,0.000139,2]
[331377420,1720301436180,-671.12410062,0.000139,2]
[331377421,1720301436194,-1000.0,0.000139,2]
[331377422,1720301436206,-1000.0,0.000139,2]
[331377423,1720301436218,-150.0,0.00013901,2]
[331377424,1720301436232,-150.0,0.00013902,2]
[331377425,1720301436257,-150.0,0.00013902,2]
[331377426,1720301436270,-150.0,0.00013907,2]
[331377427,1720301436287,-300.0,0.00013909,2]
[331377428,1720301436298,-1500.0,0.00013911,2]
[331377429,1720301436333,-150.0,0.00013911,2]
[331377430,1720301436347,-300.0,0.00013913,2]
[331377431,1720301436359,-150.0,0.00013915,2]
[331377432,1720301436371,-150.0,0.00013916,2]
[331377433,1720301436383,-1500.0,0.00013916,2]
[331377434,1720301436399,-150.0,0.00013917,2]
[331377435,1720301436414,-150.0,0.00013917,2]
[331377436,1720301436430,-150.0,0.00013917,2]
[331377437,1720301436441,-150.0,0.00013918,2]
[331377438,1720301436454,-1500.0,0.00013918,2]
[331377439,1720301436468,-150.0,0.0001392,2]
[331377440,1720301436478,-150.0,0.00013921,2]
[331377441,1720301436489,-150.0,0.00013921,2]
[331377442,1720301436500,-150.0,0.00013921,2]
[331377443,1720301436513,-150.0,0.00013925,2]
[331377444,1720301436529,-150.0,0.00013926,2]
[331377445,1720301436540,-150.0,0.00013927,2]
[331377446,1720301436564,-150.0,0.00013927,2]
[331377447,1720301436588,-150.0,0.00013928,2]
[331377448,1720301436605,-150.0,0.00013935,2]
[331377449,1720301436619,-150.0,0.00013936,2]
[331377450,1720301436631,-150.0,0.00013942,2]
[331377451,1720301436669,-150.0,0.00013943,2]
[331377452,1720301436685,-150.0,0.00013944,2]
[331377453,1720301436696,-150.0,0.00013944,2]
[331377454,1720301436711,-150.0,0.00013948,2]
[331377455,1720301436728,-150.0,0.00013957,2]
[331377456,1720301436741,-150.0,0.00013957,2]
[331377457,1720301436769,-150.0,0.00013958,2]
[331377458,1720301436783,-150.0,0.00013969,2]
[331377459,1720301436818,-150.0,0.00013972,2]
[331377460,1720301436832,-150.0,0.00013972,2]
[331377461,1720301436845,-150.0,0.00013974,2]
[331377462,1720301436857,-150.0,0.00013975,2]
[331377463,1720301436870,-150.0,0.00013979,2]
[331377464,1720301436894,-150.0,0.00013981,2]
[331377465,1720301436907,-150.0,0.00013981,2]
[331377466,1720301436922,-1500.0,0.00013981,2]
[331377467,1720301436935,-150.0,0.00013984,2]
[331377468,1720301436956,-150.0,0.00013985,2]
[331377469,1720301436967,-150.0,0.00013985,2]
[331377470,1720301436979,-150.0,0.00013988,2]
[331377471,1720301436991,-150.0,0.00013988,2]
[331377472,1720301437003,-793.7370256,0.00013989,2]
[331377473,1720301437016,-549.2910533,0.00013989,2]
[331377474,1720301437030,-4242.9531893,0.0001399,2]
[331377475,1720301437047,-1301.1641393,0.0001399,2]
[331377476,1720301437059,-699.7356761,0.0001399,2]
[331377477,1720301437072,-605.7343265,0.0001399,2]
[331377478,1720301437084,-511.7329769,0.0001399,2]
[331377479,1720301437102,-150.0,0.00013991,2]
[331377480,1720301437113,-150.0,0.00013994,2]
[331377481,1720301437126,-1000.0,0.00013994,2]
[331377482,1720301437137,-150.0,0.00013995,2]
[331377483,1720301437148,-150.0,0.00013996,2]
[331377484,1720301437160,-200.08478704,0.00013996,2]
[331377485,1720301437535,-150.0,0.00013996,2]
[331377486,1720301437545,-379.49243244,0.00013999,5]
[331377487,1720301437557,-338.58912644,0.00013999,2]
[331377488,1720301437568,-182297.39793469,0.00014,2]
[331377489,1720301437591,-40262.82758371,0.00014,2]
[331377490,1720301437604,-1746060.19929283,0.00014,2]
[331377491,1720301437618,-428.32614833,0.00014,2]
[331377492,1720301437648,-448.08687165,0.00014,2]
[331377493,1720301438334,-2085.0,0.00014,2]
[331377494,1720301438353,-1010.84700863,0.00014,2]
[331377495,1720301438366,-3955.96712328,0.00014,2]
[331377496,1720301438380,-328.33,0.00014,2]
[331377497,1720301438395,-290.89568695,0.00014,2]
[331377498,1720301438409,-25605.72422148,0.00014,2]
[331377499,1720301438422,-957.39209914,0.00014,2]
[331377500,1720301438525,-620.99,0.00014,2]
[331377503,1720301442640,-405.208,0.00013574,2]
[331377505,1720301442653,-119.2984752,0.00013574,2]
[331377507,1720301442664,-143.79325083,0.00014,2]
[331377509,1720301442677,-548.94403522,0.00014,2]
[331377512,1720301442693,-91559.57854307,0.00014,2]
[331377566,1720301444143,-739.27907111,0.00014,2]
[331377567,1720301444156,-30286.63931483,0.00014,2]
[331377568,1720301444169,-26718.03744393,0.00014,2]
[331377569,1720301444181,-19200.17667964,0.00014,2]
[331377570,1720301444195,-5817.6,0.00014,2]
[331377572,1720301445004,-150.0,0.00013774,2]
[331377573,1720301445016,-150.0,0.00013801,2]
[331377574,1720301445028,-150.0,0.00013817,2]
[331377576,1720301445041,-526.20732012,0.00014,2]
[331377604,1720301447547,-616.45468681,0.00014,2]
[331377689,1720301449298,-225.7260843,0.00013999,2]
[331377691,1720301449309,-2075.37471336,0.00014,2]
[331377693,1720301449321,-605.67764587,0.00014,2]
[331377695,1720301449332,-573.43013765,0.00014,2]
[331378302,1720301660429,1398.7909551,0.00011199,2]
[331378303,1720301751395,1884.27285191,0.00011199,2]
[331378306,1720301912024,155.0,0.00011199,2]
[331378310,1720302051209,757.68,0.0001097,2]
[331378345,1720302281755,411.72766835,0.0001097,2]
[331378346,1720302287976,290.63547347,0.0001097,2]
[331378349,1720302304772,788.56484494,0.00011199,2]
[331378353,1720302332590,227.19964772,0.00011199,2]
[331378354,1720302354670,161.74257823,0.00011199,2]
[331378356,1720302362156,13799.81392056,0.0001097,2]
[331378362,1720302385254,19831.83036653,0.00011199,2]
[331378364,1720302388742,181.23195314,0.00011199,2]
[331378365,1720302390566,411.72766835,0.00011199,2]
[331378367,1720302526338,61642.44918928,0.00011199,2]
[331378371,1720302583855,290.51373321,0.00011199,2]
[331378383,1720302634458,-1095.33025581,0.000118,2]
[331378385,1720302634506,-250.0,0.00012678,2]
[331378388,1720302634519,-500.0,0.00012775,2]
[331378389,1720302634545,-168.86,0.0001286,2]
[331378392,1720302634572,-150.0,0.00012877,2]
[331378393,1720302634583,-300.0,0.00012881,2]
[331378396,1720302634601,-3205.48242053,0.00012882,2]
[331378399,1720302634648,-7646.98285621,0.00012882,2]
[331378400,1720302634666,-15035.53472326,0.00012882,2]
[331378401,1720302634677,-250.0,0.00012885,2]
[331378403,1720302634917,-499.99,0.00012885,2]
[331378404,1720302634928,-15841.44320329,0.00012901,2]
[331378405,1720302635035,-1709.0,0.00012901,2]
[331378406,1720302635069,-5140.10679671,0.00012901,2]
[331378407,1720302635079,-400.0,0.00012928,2]
[331378408,1720302635172,-170.67,0.00012966,2]
[331378409,1720302635183,-1915.1282,0.00013197,2]
[331378410,1720302635221,-757.68,0.00013234,2]
[331378411,1720302635242,-3359.41500329,0.00013234,2]
[331378412,1720302635259,-633.6425639,0.00013234,2]
[331378415,1720302640279,-1443.26152,0.00013234,2]
[331378442,1720302641354,-688.35,0.00013234,2]
[331378444,1720302641445,-2366.07284405,0.00013234,2]
[331378449,1720302641559,-4398.56806876,0.00013234,2]
[331378451,1720302641619,-163.47,0.000133,2]
[331378452,1720302641673,-150.0,0.000133,2]
[331378453,1720302641696,-419.2,0.00013486,2]
[331378464,1720302641833,-419.2,0.00013486,2]
[331378466,1720302641870,-419.2,0.00013486,2]
[331378468,1720302641944,-181.23195314,0.00013574,2]
[331378469,1720302641957,-637.26,0.00013699,2]
[331378472,1720302642003,-250.0,0.00013699,2]
[331378474,1720302642015,-500.0,0.00013699,2]
[331378475,1720302642043,-2847.42,0.00013699,2]
[331378477,1720302642110,-1119.84811585,0.0001372,2]
[331378478,1720302642143,-1148.35080159,0.0001372,2]
[331378481,1720302642166,-1085.51125022,0.0001372,2]
[331378483,1720302642225,-150.0,0.00013727,2]
[331378484,1720302642238,-150.0,0.00013732,2]
[331378485,1720302642252,-150.0,0.00013736,2]
[331378488,1720302642285,-150.0,0.00013738,2]
[331378490,1720302642355,-150.0,0.00013746,2]
[331378494,1720302642405,-150.0,0.00013748,2]
[331378496,1720302642430,-150.0,0.00013754,2]
[331378497,1720302642480,-150.0,0.0001376,2]
[331378500,1720302642527,-150.0,0.00013766,2]
[331378501,1720302642539,-150.0,0.0001377,2]
[331378503,1720302642549,-150.0,0.00013773,2]
[331378504,1720302642559,-300.0,0.00013776,2]
[331378505,1720302642569,-150.0,0.00013789,2]
[331378507,1720302642581,-1205.92,0.000138,2]
[331378508,1720302642594,-1000.0,0.000138,2]
[331378509,1720302642616,-150.0,0.0001381,2]
[331378511,1720302642641,-150.0,0.00013811,2]
[331378514,1720302642673,-150.0,0.00013814,2]
[331378515,1720302642683,-150.0,0.00013822,2]
[331378516,1720302642694,-150.0,0.00013823,2]
[331378520,1720302642760,-150.0,0.00013852,2]
[331378522,1720302642785,-150.0,0.00013853,2]
[331378525,1720302642814,-3000.0,0.0001386,2]
[331378526,1720302642826,-2927.45415182,0.0001387,2]
[331378565,1720302644082,-72.54584818,0.0001387,2]
[331378570,1720302644126,-150.0,0.00013873,2]
[331378572,1720302644162,-3963.7299796,0.0001388,2]
[331378575,1720302644182,-2796.57145815,0.0001388,2]
[331378577,1720302644216,-135.30749185,0.0001388,2]
[331378578,1720302644231,-404.64145571,0.0001388,2]
[331378579,1720302644243,-616.38,0.0001388,2]
[331378580,1720302644255,-394.20029393,0.0001388,2]
[331378581,1720302644280,-7398.76240569,0.0001388,2]
[331378582,1720302644291,-150.0,0.00013886,2]
[331378603,1720302644763,-220.45,0.0001389,2]
[331378604,1720302644814,-150.0,0.00013897,2]
[331378609,1720302644859,-150.0,0.00013899,2]
[331378610,1720302644870,-187.74629942,0.000139,2]
[331378611,1720302644887,-1258.6782393,0.000139,2]
[331378623,1720302645926,-2813.12587195,0.000139,2]
[331378624,1720302645947,-271.7099987,0.000139,2]
[331378625,1720302645967,-2435.38767799,0.000139,2]
[331378626,1720302646004,-571.61863789,0.000139,2]
[331378628,1720302646020,-1765.5,0.000139,2]
[331378631,1720302646087,-258.26659757,0.000139,2]
[331378634,1720302646136,-1415.55102347,0.000139,2]
[331378635,1720302646149,-1028.443,0.000139,2]
[331378636,1720302646167,-11663.33973214,0.000139,2]
[331378639,1720302646223,-8955.59627251,0.000139,2]
[331378641,1720302646234,-16860.2388468,0.000139,2]
[331378642,1720302646246,-1835.51102729,0.000139,2]
[331378643,1720302646262,-3310.30765838,0.000139,2]
[331378644,1720302646292,-3950.40628861,0.000139,2]
[331378645,1720302646352,-3050.28284174,0.000139,2]
[331378646,1720302646402,-1301.90749695,0.000139,2]
[331378647,1720302646414,-2776.36303042,0.000139,2]
[331378653,1720302647592,-3000.0,0.0001388,2]
[331378654,1720302647644,-7452.21690921,0.000139,2]
[331378655,1720302647661,-360.92309079,0.000139,2]
[331378669,1720302648365,-639.07690921,0.000139,2]
[331378670,1720302648376,-47.49839219,0.000139,2]
[331378671,1720302648390,-454.66331717,0.000139,2]
[331378672,1720302648410,-1160.39088296,0.000139,2]
[331378673,1720302648422,-1853.0665082,0.000139,2]
[331378675,1720302648434,-1211.00213444,0.000139,2]
[331378677,1720302648457,-1023.8247395,0.000139,2]
[331378678,1720302648467,-150.0,0.00013902,2]
[331378680,1720302648503,-150.0,0.00013907,2]
[331378683,1720302648550,-300.0,0.00013909,2]
[331378684,1720302648577,-3000.0,0.0001391,2]
[331378685,1720302648588,-150.0,0.00013913,2]
[331378686,1720302648604,-150.0,0.00013927,2]
[331378687,1720302648621,-20095.72275799,0.00013929,2]
[331378688,1720302648651,-150.0,0.0001395,2]
[331378689,1720302648661,-150.0,0.00013973,2]
[331378690,1720302648671,-741.4619051,0.00013989,2]
[331378691,1720302648685,-3381.7658018,0.00013989,2]
[331378692,1720302648721,-1037.0683325,0.00013989,2]
[331378693,1720302648736,-2949.0175338,0.0001399,2]
[331378694,1720302648747,-2516.2692658,0.0001399,2]
[331378695,1720302648779,-2083.5209978,0.0001399,2]
[331378696,1720302648795,-904.3596971,0.0001399,2]
[331378697,1720302648848,-771.6510617,0.0001399,2]
[331378698,1720302648876,-638.9424263,0.0001399,2]
[331378699,1720302648888,-150.4840562,0.00013999,2]
[331378700,1720302648901,-519.0,0.00014,2]
[331378701,1720302648917,-2959.90780097,0.00014,2]
[331378704,1720302648931,-450.0,0.00014,2]
[331378717,1720302650109,-600.42032532,0.00013472,2]
[331378719,1720302650123,-2340.0,0.00013472,2]
[331378722,1720302650155,-866.09290291,0.00013472,2]
[331378724,1720302650175,-9173.32100573,0.00013472,2]
[331378726,1720302650203,-89624.88312056,0.00014,2]
[331378727,1720302650217,-296.13443335,0.00014,2]
[331378729,1720302650272,-4445.23740939,0.00014,2]
[331378731,1720302650310,-605.70812265,0.00014,2]
[331378748,1720302650928,-30756.22282231,0.00014,2]
[331378750,1720302650949,-747.85523931,0.00014,2]
[331378755,1720302650994,-348.04079335,0.00014,2]
[331378757,1720302651021,-668.90836217,0.00014,2]
[331378763,1720302651067,-772.1299993,0.00014,2]
[331378765,1720302651082,-716.30002,0.00014,2]
[331378768,1720302651152,-1511.16591522,0.00014,2]
[331378769,1720302651179,-324.82200539,0.00014,2]
[331378770,1720302651207,-1050.66990547,0.00014,2]
[331378771,1720302651219,-2093.79820878,0.00014,2]
[331378772,1720302651232,-555.05756935,0.00014,2]
[331378773,1720302651247,-485.29999995,0.00014,2]
[331378797,1720302651817,-456.10768927,0.00014,2]
[331378799,1720302651830,-344.65771857,0.00014,2]
[331378801,1720302651865,-440.29978316,0.00014,2]
[331378803,1720302651882,-857.20900282,0.00014,2]
[331378805,1720302651902,-582.00959307,0.00014,2]
[331378807,1720302651914,-9280.32353471,0.00014,2]
[331378810,1720302651964,-46128.77761372,0.00014,2]
[331378811,1720302651991,-734.02466279,0.00014,2]
[331378812,1720302652020,-319.31715993,0.00014,2]
[331378814,1720302652032,-895.73293621,0.00014,2]
[331378816,1720302652049,-1356.9970628,0.00014,2]
[331378817,1720302652068,-3207.21499114,0.00014,2]
[331378819,1720302652092,-2910.55810647,0.00014,2]
[331378820,1720302652104,-890.2,0.00014,2]
[331378840,1720302652712,-365.03270218,0.00014,2]
[331378841,1720302652726,-2540.00425528,0.00014,2]
[331378845,1720302652826,-2356.43045917,0.00014,2]
[331379447,1720302671198,155.0,0.00011199,2]
[331379509,1720302745959,181.00005296,0.00011199,2]
[331379512,1720302764878,1365.6260186,0.00011199,2]
[331379520,1720302793966,343.624345,0.00025389,120]
[331379525,1720302807232,715.17,0.00010896,2]
[331379537,1720302913473,19831.83036653,0.00010896,2]